[Event "FIDE WCCC G12 2018"]
[Site "Santiago de Compostela"]
[Date "2018.11.04"]
[Round "1"]
[White "Portero Bravo, Aitana"]
[Black "Vicze, Kata"]
[Result "0-1"]
[ECO "A08"]
[WhiteElo "1525"]
[BlackElo "1828"]
[Annotator "NA RC"]
[PlyCount "104"]
[EventDate "2018.11.04"]
[EventType "swiss"]
[EventCountry "ESP"]
[SourceTitle "playchess.com"]
[Source "ChessBase"]
[SourceQuality "1"]
[TimeControl "40/5400+30:1800+30"]

{[%evp 15,104,-13,32767,32767,32767,32767,32767,32767,32767,-37,32767,-62,32767,32767,32767,32767,32767,32767,32767,-22,-10,-130,-70,-144,-36,32767,32767,32767,32767,32767,32767,32767,32767,32767,20,-77,-52,-74,-47,-73,-5,-157,-149,32767,-212,-421,-403,32767,-521,-530,-193,32767,-190,32767,-484,-506,-256,-299,-91,-233,0,-366,64,-434,-481,32767,32767,32767,32767,-596,-543,-502,-586,-514,32767,-531,-628,-898,-4128,-12841,-1000,-1841,-6066,-29965,-29956,-5106,-29976,-29977,-29979,-29979,-29977]} 1. e4 {[%emt 0:00:00]} c5 {[%emt 0:00:00]} 2. Nf3 {[%emt 0:00:00]} Nc6 {[%emt 0:00:02]} 3. d3 {[%emt 0:00:00]} Nf6 {[%emt 0:02:22]} 4. g3 {[%emt 0:00:03]} e6 {[%emt 0:02:40]} 5. Bg2 {[%emt 0:00:33]} d5 {[%emt 0:01:25]} 6. Nbd2 {[%emt 0:00:35]} Be7 {[%emt 0:02:08]} 7. O-O {[%emt 0:00:43]} O-O {[%emt 0:05:43]} 8. Re1 {[%emt 0:00:33] LiveBook: 1150 Games} b5 {[%emt 0:05:30]} 9. e5 {[%emt 0:04:37]} Nd7 {[%emt 0:03:36]} 10. Nf1 {[%emt 0:01:50]} Bb7 {[%emt 0:02:22]} 11. h4 {[%emt 0:01:41] C00: French: Unusual White 2nd moves} Rc8 {[%emt 0:05:28]} (11... Qc7 12. Bf4 Rfc8 13. Ne3 Qd8 14. Ng4 Bf8 15. Bg5 Qe8 16. c3 h6 17. Bf4 a5 18. Qd2 b4 19. c4 Ne7 20. h5 {1-0 (59) Kuzubov,Y (2699)-Grischuk,A (2772) Riadh 2017}) 12. Bf4 {[%emt 0:04:00]} Qb6 {[%emt 0:05:34]} 13. Ng5 $146 {[%emt 0:02:21]} ({Predecessor:} 13. N1h2 d4 14. Ng5 Nb4 15. a3 Bxg2 16. Kxg2 Nd5 17. Qh5 Bxg5 18. hxg5 Qc6 19. Re4 Rfd8 20. Ng4 c4 21. Rh1 Nf8 22. Nf6+ gxf6 23. gxf6 cxd3 24. cxd3 Ng6 25. Qh6 {1-0 (25) Garro Beraza,H (2075)-Pinedo Lerma,J (2162) Bergara 2010}) 13... Bxg5 {[%emt 0:11:05]} 14. hxg5 {[%emt 0:00:10]} Nd4 {[%emt 0:03:46]} 15. Ne3 {[%emt 0:03:32]} Rfd8 {[%emt 0:09:10]} 16. Qh5 {[%emt 0:03:55]} Nf8 {[%emt 0:02:30]} 17. Kh2 {[%emt 0:04:45]} Nf5 {[%emt 0:03:29]} 18. Ng4 {[%emt 0:05:54]} (18. Nxf5 $11 {remains equal.} exf5 19. a4) 18... Ng6 {[%emt 0:03:45]} 19. Rh1 {[%emt 0:07:10] [#]} (19. Rad1 $15) 19... Kf8 {[%emt 0:03:45]} ({Resist} 19... Nxf4 20. gxf4 c4 21. Kg1 $11) (19... c4 $1 $17 20. Kg1 Kf8) 20. Ne3 {[%emt 0:15:52]} Ke7 {[%emt 0:04:07]} 21. Nxf5+ {[%emt 0:02:26]} exf5 {[%emt 0:00:20]} 22. Rae1 {[%emt 0:01:48]} c4 {[%emt 0:04:31]} 23. Rhf1 {[%emt 0:03:27]} Rh8 {[%emt 0:03:17]} 24. Kg1 {[%emt 0:00:34]} d4 {[%emt 0:02:28]} 25. Qe2 {[%emt 0:05:52]} (25. Bxb7 $11 {keeps the balance.} Qxb7 26. e6) 25... Bxg2 {[%emt 0:04:19]} 26. Kxg2 {[%emt 0:00:10]} h6 {[%emt 0:00:31]} 27. Bd2 {[%emt 0:03:30]} h5 {[%emt 0:02:34]} (27... Qc6+ $17 28. f3 hxg5 29. Bxg5+ Ke6 30. dxc4 Rh5 31. cxb5 Qxc2) 28. e6 {[%emt 0:04:46]} (28. Bb4+ $11 Ke6 29. f4) 28... fxe6 {[%emt 0:01:27]} 29. Bb4+ {[%emt 0:00:41]} Kf7 {[%emt 0:00:40]} 30. dxc4 $2 {[%emt 0:02:39]} (30. f4) 30... h4 {[%emt 0:02:09]} 31. cxb5 {[%emt 0:01:24]} Qb7+ {[%emt 0:01:59]} 32. f3 {[%emt 0:00:53]} Rce8 $2 {[%emt 0:00:20]} (32... Qd7 33. Rh1 hxg3 34. Kxg3 Qc7+ 35. Kf2 Rh2+ 36. Rxh2 Qxh2+ 37. Kf1 Qh1+ 38. Kf2 Qh4+ 39. Kg1 Nf4) 33. Rh1 {[%emt 0:00:47]} hxg3 {[%emt 0:01:16]} 34. Kxg3 {[%emt 0:00:59]} Qc7+ {[%emt 0:01:25]} 35. Kf2 {[%emt 0:01:20]} Nf4 {[%emt 0:00:41]} (35... Rh2+ $142 36. Rxh2 Qxh2+ 37. Kf1 Qh1+ 38. Kf2 Qh4+ 39. Kg1 d3 40. Qxd3 Qxb4) 36. Qd2 {[%emt 0:02:01]} Nh3+ {[%emt 0:00:41]} ({Better is} 36... e5 $19 37. c3 d3) 37. Kg2 $2 {[%emt 0:01:02]} (37. Ke2 $1 $15) 37... Nf4+ $2 {[%emt 0:00:13]} (37... Rh4 $19 38. Ba5 Qb7 39. Rxh3 Rxh3) 38. Kf2 {[%emt 0:00:08]} Nd5 $2 {[%emt 0:00:13]} 39. Rxh8 $4 {[%emt 0:03:21]} (39. g6+ $1 $14 {was the only good move.} Kg8 40. Rxh8+ Kxh8 41. Rh1+ Kg8 42. Qxd4 Qxc2+ 43. Bd2) 39... Rxh8 {[%emt 0:00:02]} 40. g6+ {[%emt 0:00:00]} Kxg6 {[%emt 0:00:00]} 41. Rxe6+ {[%emt 0:07:06]} Kf7 {[%emt 0:03:17]} 42. Bd6 {[%emt 0:20:53] [#]} Rh2+ $1 {[%emt 0:02:31]} 43. Bxh2 {[%emt 0:00:22]} Qxh2+ {[%emt 0:00:09]} 44. Ke1 {[%emt 0:00:11]} Qxd2+ {[%emt 0:00:17]} 45. Kxd2 {[%emt 0:00:11]} Kxe6 {[%emt 0:00:05]} 46. c3 {[%emt 0:00:51]} dxc3+ {[%emt 0:09:37]} 47. bxc3 {[%emt 0:00:11]} Nb6 {[%emt 0:00:21]} (47... Kd6 $142 48. c4 Nb6) 48. Ke3 {[%emt 0:00:35]} Ke5 {[%emt 0:02:40]} 49. f4+ {[%emt 0:00:12]} Kd5 {[%emt 0:00:30]} 50. Kd3 {[%emt 0:00:52]} Kc5 {[%emt 0:00:50]} 51. c4 {[%emt 0:01:13]} Nxc4 {[%emt 0:00:35]} 52. Kc3 {[%emt 0:00:16]} Na3 {[%emt 0:00:26] Kd4+} 0-1

[Event "FIDE WCCC G12 2018"]
[Site "Santiago de Compostela"]
[Date "2018.11.04"]
[Round "1"]
[White "Mahi Amit Doshi"]
[Black "Shuqja, Klean"]
[Result "0-1"]
[ECO "D96"]
[WhiteElo "1515"]
[BlackElo "1798"]
[Annotator "NA RC"]
[PlyCount "54"]
[EventDate "2018.11.04"]
[EventType "swiss"]
[EventCountry "ESP"]
[SourceTitle "playchess.com"]
[Source "ChessBase"]
[SourceQuality "1"]
[TimeControl "40/5400+30:1800+30"]

1. d4 {[%emt 0:00:00]} Nf6 {[%emt 0:00:00]} 2. c4 {[%emt 0:00:00]} g6 {[%emt 0:00:00]} 3. Nc3 {[%emt 0:00:00]} d5 {[%emt 0:00:00]} 4. Nf3 {[%emt 0:00:23]} Bg7 {[%emt 0:00:00]} 5. Qb3 {[%emt 0:00:19]} c6 {[%emt 0:08:12]} 6. cxd5 {[%emt 0:05:11]} Nxd5 {[%emt 0:03:00]} 7. Nxd5 {[%emt 0:09:27]} cxd5 {[%emt 0:06:55]} 8. Bf4 {[%emt 0:00:37]} Nc6 {[%emt 0:06:06]} 9. e3 {[%emt 0:02:56]} O-O {[%emt 0:03:53]} 10. Be2 {[%emt 0:00:35]} Qa5+ {[%emt 0:08:15]} 11. Qc3 {[%emt 0:03:33]} Qxc3+ {[%emt 0:02:16]} 12. bxc3 {[%emt 0:00:22]} Bg4 {[%emt 0:05:05]} 13. h3 {[%emt 0:02:49]} Bxf3 {[%emt 0:04:25]} 14. Bxf3 {[%emt 0:02:30]} Rfd8 {[%emt 0:04:44]} 15. Rb1 {[%emt 0:12:18]} Rd7 {[%emt 0:06:27]} 16. Rb5 {[%emt 0:01:49]} e6 {[%emt 0:03:39]} 17. Ke2 {[%emt 0:03:01]} a6 {[%emt 0:07:55]} 18. Rb6 {[%emt 0:06:27]} Na5 {[%emt 0:03:39]} 19. e4 {[%emt 0:18:51]} Nc4 {[%emt 0:07:10]} 20. Rb4 {[%emt 0:04:58]} b5 {[%emt 0:01:27]} 21. Kd3 {[%emt 0:06:49]} dxe4+ {[%emt 0:07:09]} 22. Bxe4 {[%emt 0:00:37]} Rc8 {[%emt 0:00:26]} 23. Rd1 {[%emt 0:03:28]} e5 {[%emt 0:01:16]} 24. Be3 {[%emt 0:03:48]} f5 {[%emt 0:00:39]} 25. Bf3 {[%emt 0:01:07]} e4+ {[%emt 0:00:12]} 26. Bxe4 {[%emt 0:00:05]} fxe4+ {[%emt 0:00:03]} 27. Kxe4 {[%emt 0:01:07]} Nxe3 {[%emt 0:00:16]} 0-1

[Event "FIDE WCCC G12 2018"]
[Site "Santiago de Compostela"]
[Date "2018.11.04"]
[Round "1"]
[White "Andrukhovich, Elizaveta"]
[Black "Zvereva, Margarita"]
[Result "0-1"]
[ECO "B92"]
[WhiteElo "1508"]
[BlackElo "1787"]
[Annotator "NA RC"]
[PlyCount "114"]
[EventDate "2018.11.04"]
[EventType "swiss"]
[EventCountry "ESP"]
[SourceTitle "playchess.com"]
[Source "ChessBase"]
[SourceQuality "1"]
[TimeControl "40/5400+30:1800+30"]

1. e4 {[%emt 0:00:00]} c5 {[%emt 0:00:00]} 2. Nf3 {[%emt 0:00:00]} d6 {[%emt 0:00:00]} 3. d4 {[%emt 0:00:00]} cxd4 {[%emt 0:00:00]} 4. Nxd4 {[%emt 0:00:00]} Nf6 {[%emt 0:00:10]} 5. Nc3 {[%emt 0:00:04]} a6 {[%emt 0:00:18]} 6. Be2 {[%emt 0:00:30]} e5 {[%emt 0:00:50]} 7. Nb3 {[%emt 0:00:33]} Be7 {[%emt 0:02:13]} 8. Bf3 {[%emt 0:01:45]} O-O {[%emt 0:04:13]} 9. O-O {[%emt 0:01:35]} Qc7 {[%emt 0:05:50]} 10. Bg5 {[%emt 0:03:10]} Nbd7 {[%emt 0:05:31]} 11. Qd2 {[%emt 0:08:16]} b6 {[%emt 0:03:40]} 12. Ne2 {[%emt 0:03:43]} Nc5 {[%emt 0:10:56]} 13. Ng3 {[%emt 0:05:41]} Rd8 {[%emt 0:12:20]} 14. Bxf6 {[%emt 0:02:34]} Bxf6 {[%emt 0:00:10]} 15. Rad1 {[%emt 0:08:32]} Be6 {[%emt 0:07:16]} 16. Rfe1 {[%emt 0:05:09]} Rac8 {[%emt 0:01:49]} 17. Qe2 {[%emt 0:11:24]} b5 {[%emt 0:09:14]} 18. Nf1 {[%emt 0:13:44]} Bg5 {[%emt 0:13:30]} 19. Bg4 {[%emt 0:05:27]} Bc4 {[%emt 0:05:28]} 20. Qf3 {[%emt 0:00:33]} Rb8 {[%emt 0:00:32]} 21. Ne3 {[%emt 0:04:18]} Bxe3 {[%emt 0:01:05]} 22. Rxe3 {[%emt 0:01:37]} Na4 {[%emt 0:01:10]} 23. Rb1 {[%emt 0:03:56]} d5 {[%emt 0:01:41]} 24. exd5 {[%emt 0:07:21]} Bxd5 {[%emt 0:01:17]} 25. Qe2 {[%emt 0:00:32]} Re8 {[%emt 0:02:33]} 26. c3 {[%emt 0:08:01]} Nb6 {[%emt 0:00:28]} 27. Rd1 {[%emt 0:02:25]} Rbd8 {[%emt 0:00:50]} 28. Qc2 {[%emt 0:01:10]} Bc4 {[%emt 0:04:25]} 29. Ree1 {[%emt 0:01:00]} Qe7 {[%emt 0:02:50]} 30. Qe4 {[%emt 0:01:06]} Bd5 {[%emt 0:00:59]} 31. Qe2 {[%emt 0:00:29]} Nc4 {[%emt 0:02:07]} 32. Rd3 {[%emt 0:00:35]} e4 {[%emt 0:01:14]} 33. Rh3 {[%emt 0:00:35]} g6 {[%emt 0:00:40]} 34. Rg3 {[%emt 0:00:20]} Kh8 {[%emt 0:00:45]} 35. Nd4 {[%emt 0:00:26]} b4 {[%emt 0:00:42]} 36. b3 {[%emt 0:00:35]} Ne5 {[%emt 0:00:25]} 37. c4 {[%emt 0:00:33]} Bb7 {[%emt 0:00:24]} 38. Rd1 {[%emt 0:00:41]} Nd3 {[%emt 0:00:29]} 39. Nc2 {[%emt 0:00:24]} f5 {[%emt 0:00:38]} 40. Bh3 {[%emt 0:00:00]} f4 {[%emt 0:00:00]} 41. Rg4 {[%emt 0:11:34]} Bc8 {[%emt 0:00:41]} 42. Ne1 {[%emt 0:03:16]} Bxg4 {[%emt 0:00:52]} 43. Bxg4 {[%emt 0:01:02]} Nxe1 {[%emt 0:01:10]} 44. Rxe1 {[%emt 0:00:23]} Qe5 {[%emt 0:04:01]} 45. a3 {[%emt 0:07:43]} bxa3 {[%emt 0:05:56]} 46. b4 {[%emt 0:02:02]} Qc3 {[%emt 0:00:58]} 47. c5 {[%emt 0:03:18]} a2 {[%emt 0:01:18]} 48. Qf1 {[%emt 0:01:39]} e3 {[%emt 0:06:19]} 49. fxe3 {[%emt 0:02:02]} fxe3 {[%emt 0:03:20]} 50. Rc1 {[%emt 0:01:37]} Qd4 {[%emt 0:04:17]} 51. Be2 {[%emt 0:00:16]} Rf8 {[%emt 0:01:56]} 52. Qe1 {[%emt 0:00:20]} Rf2 {[%emt 0:01:34]} 53. Bxa6 {[%emt 0:01:33]} Qd2 {[%emt 0:02:06]} 54. Qxd2 {[%emt 0:00:54]} Rfxd2 {[%emt 0:00:23]} 55. Rf1 {[%emt 0:00:29]} Rd1 {[%emt 0:00:09]} 56. c6 {[%emt 0:00:21]} Rxf1+ {[%emt 0:00:20]} 57. Bxf1 {[%emt 0:00:14]} a1=Q {[%emt 0:00:07]} 0-1

[Event "FIDE WCCC G12 2018"]
[Site "Santiago de Compostela"]
[Date "2018.11.04"]
[Round "1"]
[White "Putinceva, Marina"]
[Black "Nurmanova, Alua"]
[Result "1/2-1/2"]
[ECO "B84"]
[WhiteElo "1503"]
[BlackElo "1780"]
[Annotator "NA"]
[PlyCount "52"]
[EventDate "2018.11.04"]
[EventType "swiss"]
[EventCountry "ESP"]
[SourceTitle "playchess.com"]
[Source "ChessBase"]
[SourceQuality "1"]
[TimeControl "40/5400+30:1800+30"]

1. e4 {[%emt 0:00:00]} c5 {[%emt 0:00:00]} 2. Nf3 {[%emt 0:00:00]} d6 {[%emt 0:00:00]} 3. d4 {[%emt 0:00:04]} cxd4 {[%emt 0:00:00]} 4. Nxd4 {[%emt 0:00:16]} Nf6 {[%emt 0:00:04]} 5. Nc3 {[%emt 0:00:17]} a6 {[%emt 0:00:32]} 6. Be2 {[%emt 0:01:24]} e6 {[%emt 0:00:27]} 7. Be3 {[%emt 0:05:02]} Be7 {[%emt 0:02:01]} 8. O-O {[%emt 0:05:03]} O-O {[%emt 0:01:39]} 9. a4 {[%emt 0:03:11]} Nc6 {[%emt 0:02:14]} 10. Qd2 {[%emt 0:11:46]} Qc7 {[%emt 0:05:48]} 11. f4 {[%emt 0:06:33]} Nxd4 {[%emt 0:08:01]} 12. Qxd4 {[%emt 0:02:32]} e5 {[%emt 0:03:16]} 13. fxe5 {[%emt 0:03:10]} dxe5 {[%emt 0:00:43]} 14. Qb6 {[%emt 0:00:46]} Qb8 {[%emt 0:08:48]} 15. Nd5 {[%emt 0:01:32]} Bd8 {[%emt 0:14:16]} 16. Nxf6+ {[%emt 0:00:32]} gxf6 {[%emt 0:03:27]} 17. Qb3 {[%emt 0:05:25]} Be6 {[%emt 0:06:57]} 18. Qa3 {[%emt 0:03:20]} Re8 {[%emt 0:08:27]} 19. Bh6 {[%emt 0:03:32]} Kh8 {[%emt 0:02:08]} 20. Rf3 {[%emt 0:05:16]} Be7 {[%emt 0:06:45]} 21. Rg3 {[%emt 0:11:48]} Bxa3 {[%emt 0:02:38]} 22. Bg7+ {[%emt 0:00:05]} Kg8 {[%emt 0:00:04]} 23. Bh6+ {[%emt 0:00:03]} Kh8 {[%emt 0:00:06]} 24. Bg7+ {[%emt 0:00:03]} Kg8 {[%emt 0:00:06]} 25. Bh6+ {[%emt 0:00:04]} Kh8 {[%emt 0:00:03]} 26. Bg7+ {[%emt 0:00:03]} Kg8 {[%emt 0:00:08]} 1/2-1/2

[Event "FIDE WCCC G12 2018"]
[Site "Santiago de Compostela"]
[Date "2018.11.04"]
[Round "1"]
[White "Gulieva, Karina"]
[Black "Butenandt, Svenja"]
[Result "0-1"]
[ECO "A00"]
[WhiteElo "1475"]
[BlackElo "1775"]
[Annotator "NA RC"]
[PlyCount "84"]
[EventDate "2018.11.04"]
[EventType "swiss"]
[EventCountry "ESP"]
[SourceTitle "playchess.com"]
[Source "ChessBase"]
[SourceQuality "1"]
[TimeControl "40/5400+30:1800+30"]

1. Nh3 {[%emt 0:00:00]} d5 {[%emt 0:00:18]} 2. c4 {[%emt 0:00:00]} c6 {[%emt 0:03:45]} 3. e3 {[%emt 0:00:00]} Nf6 {[%emt 0:01:12]} 4. d4 {[%emt 0:00:00]} Bf5 {[%emt 0:08:42]} 5. Nf4 {[%emt 0:00:53]} e6 {[%emt 0:01:40]} 6. Nc3 {[%emt 0:02:10]} Be7 {[%emt 0:02:11]} 7. Be2 {[%emt 0:01:38]} h6 {[%emt 0:02:54]} 8. cxd5 {[%emt 0:02:01]} exd5 {[%emt 0:02:06]} 9. O-O {[%emt 0:02:19]} O-O {[%emt 0:00:33]} 10. Bd3 {[%emt 0:01:56]} Bxd3 {[%emt 0:02:50]} 11. Qxd3 {[%emt 0:00:43]} Re8 {[%emt 0:04:37]} 12. a3 {[%emt 0:08:37]} Bd6 {[%emt 0:02:21]} 13. b4 {[%emt 0:01:03]} a6 {[%emt 0:02:24]} 14. Na4 {[%emt 0:05:17]} Qc7 {[%emt 0:01:47]} 15. g3 {[%emt 0:01:37]} Nbd7 {[%emt 0:02:56]} 16. Bb2 {[%emt 0:03:47]} Nb6 {[%emt 0:06:27]} 17. Nc5 {[%emt 0:04:26]} Nc4 {[%emt 0:01:09]} 18. Qc2 {[%emt 0:02:09]} Ne4 {[%emt 0:03:37]} 19. Nxe4 {[%emt 0:08:08]} Rxe4 {[%emt 0:00:12]} 20. Nd3 {[%emt 0:00:23]} Rae8 {[%emt 0:10:11]} 21. Nc5 {[%emt 0:01:40]} Rg4 {[%emt 0:02:23]} 22. Bc1 {[%emt 0:08:50]} h5 {[%emt 0:05:50]} 23. Qf5 {[%emt 0:04:16]} Bxc5 {[%emt 0:08:37]} 24. bxc5 {[%emt 0:02:28]} g6 {[%emt 0:00:59]} 25. Qc2 {[%emt 0:00:49]} Rge4 {[%emt 0:01:17]} 26. Qb3 {[%emt 0:05:10]} Rb8 {[%emt 0:02:01]} 27. f3 {[%emt 0:01:45]} Re7 {[%emt 0:04:29]} 28. e4 {[%emt 0:01:12]} Rbe8 {[%emt 0:02:13]} 29. Bf4 {[%emt 0:01:40]} Qd7 {[%emt 0:00:36]} 30. Bg5 {[%emt 0:01:29]} Re6 {[%emt 0:00:39]} 31. e5 {[%emt 0:00:58]} Rb8 {[%emt 0:00:47]} 32. g4 {[%emt 0:02:00]} b6 {[%emt 0:01:45]} 33. gxh5 {[%emt 0:04:03]} gxh5 {[%emt 0:00:12]} 34. Rf2 {[%emt 0:01:15]} Rg6 {[%emt 0:00:18]} 35. Rg2 {[%emt 0:02:09]} Qh3 {[%emt 0:01:16]} 36. Rg3 {[%emt 0:01:56]} Qf5 {[%emt 0:00:12]} 37. Bh4 {[%emt 0:01:14]} Nd2 {[%emt 0:02:08]} 38. Qa4 Nxf3+ {[%emt 0:00:21]} 39. Kh1 {[%emt 0:03:23]} Nxh4 {[%emt 0:00:15]} 40. Rag1 {[%emt 0:00:00]} Qe4+ {[%emt 0:00:00]} 41. R3g2 {[%emt 0:01:24]} Nxg2 {[%emt 0:00:37]} 42. Qd1 {[%emt 0:00:09]} Ne3+ {[%emt 0:00:23]} 0-1

[Event "FIDE WCCC G12 2018"]
[Site "Santiago de Compostela"]
[Date "2018.11.04"]
[Round "1"]
[White "Ray, Hiya"]
[Black "Sevcikova, Lucia"]
[Result "0-1"]
[ECO "E04"]
[WhiteElo "1455"]
[BlackElo "1768"]
[Annotator "NA RC"]
[PlyCount "107"]
[EventDate "2018.11.04"]
[EventType "swiss"]
[EventCountry "ESP"]
[SourceTitle "playchess.com"]
[Source "ChessBase"]
[SourceQuality "1"]
[TimeControl "40/5400+30:1800+30"]

1. d4 {[%emt 0:00:00]} d5 {[%emt 0:00:00]} 2. Nf3 {[%emt 0:00:12]} Nf6 {[%emt 0:00:00]} 3. c4 {[%emt 0:00:24]} e6 {[%emt 0:00:07]} 4. g3 {[%emt 0:00:22]} dxc4 {[%emt 0:00:41]} 5. Bg2 {[%emt 0:00:27]} Nc6 {[%emt 0:00:46]} 6. O-O {[%emt 0:00:43]} Rb8 {[%emt 0:00:52]} 7. Bf4 {[%emt 0:03:21]} Nd5 {[%emt 0:06:10]} 8. Qd2 {[%emt 0:06:33]} Nxf4 {[%emt 0:09:19]} 9. Qxf4 {[%emt 0:00:12]} Be7 {[%emt 0:02:12]} 10. Nc3 {[%emt 0:04:22]} O-O {[%emt 0:05:23]} 11. Rfd1 {[%emt 0:03:18]} Nb4 {[%emt 0:05:36]} 12. Ne5 {[%emt 0:12:33]} Bd6 {[%emt 0:09:26]} 13. Qe4 {[%emt 0:06:03]} b5 {[%emt 0:08:36]} 14. a3 {[%emt 0:09:05]} Bb7 {[%emt 0:01:14]} 15. Qg4 {[%emt 0:00:47]} Nd5 {[%emt 0:05:38]} 16. Nxd5 {[%emt 0:03:27]} exd5 {[%emt 0:01:53]} 17. Qf5 {[%emt 0:07:35]} Qe7 {[%emt 0:04:47]} 18. f4 {[%emt 0:04:00]} Rfe8 {[%emt 0:06:23]} 19. Bf3 {[%emt 0:03:10]} Bxe5 {[%emt 0:03:00]} 20. fxe5 {[%emt 0:02:40]} Qe6 {[%emt 0:02:53]} 21. Qf4 {[%emt 0:04:42]} a5 {[%emt 0:03:40]} 22. Bg4 {[%emt 0:00:47]} Qb6 {[%emt 0:01:18]} 23. Rf1 {[%emt 0:01:22]} Rf8 {[%emt 0:03:12]} 24. Bh5 {[%emt 0:02:43]} g6 {[%emt 0:01:45]} 25. Bg4 {[%emt 0:03:35]} Bc8 {[%emt 0:01:36]} 26. Bxc8 {[%emt 0:01:28]} Rbxc8 {[%emt 0:00:10]} 27. Qg4 {[%emt 0:00:30]} Qe6 {[%emt 0:01:47]} 28. Qg5 {[%emt 0:00:39]} Rce8 {[%emt 0:03:25]} 29. Rf6 {[%emt 0:02:11]} Qd7 {[%emt 0:02:15]} 30. Raf1 {[%emt 0:00:29]} Kg7 {[%emt 0:01:57]} 31. Qf4 {[%emt 0:01:49]} Re7 {[%emt 0:02:17]} 32. h4 {[%emt 0:00:51]} h5 {[%emt 0:01:46]} 33. Qg5 {[%emt 0:01:16]} Re6 {[%emt 0:02:08]} 34. R6f4 {[%emt 0:01:38]} Qe7 {[%emt 0:01:44]} 35. Rf6 {[%emt 0:00:36]} Qe8 {[%emt 0:01:09]} 36. g4 {[%emt 0:02:41]} Rh8 {[%emt 0:01:24]} 37. R6f4 {[%emt 0:04:47]} Qe7 {[%emt 0:01:10]} 38. Rf6 {[%emt 0:00:34]} Qe8 {[%emt 0:00:07]} 39. R6f3 {[%emt 0:02:37]} hxg4 {[%emt 0:00:11]} 40. Qxg4 {[%emt 0:00:00]} Re7 {[%emt 0:00:00]} 41. Rg3 {[%emt 0:01:48]} Qd7 {[%emt 0:04:18]} 42. Qg5 {[%emt 0:00:41]} Re6 {[%emt 0:01:30]} 43. h5 {[%emt 0:01:30]} Qd8 {[%emt 0:03:42]} 44. Rf6 {[%emt 0:01:18]} Rxf6 {[%emt 0:01:45]} 45. exf6+ {[%emt 0:00:14]} Qxf6 {[%emt 0:00:05]} 46. Qxd5 {[%emt 0:00:52]} Qd6 {[%emt 0:02:12]} 47. Qg5 {[%emt 0:09:17]} Qxd4+ {[%emt 0:00:47]} 48. Kg2 {[%emt 0:02:35]} Qxb2 {[%emt 0:04:12]} 49. hxg6 {[%emt 0:01:29]} Qxe2+ {[%emt 0:00:06]} 50. Kg1 {[%emt 0:00:10]} Qe1+ {[%emt 0:00:15]} 51. Kg2 {[%emt 0:00:50]} Qh1+ {[%emt 0:00:42]} 52. Kf2 {[%emt 0:00:05]} Rh2+ {[%emt 0:00:36]} 53. Ke3 {[%emt 0:00:08]} Qc1+ 54. Kd4 0-1

[Event "FIDE WCCC G12 2018"]
[Site "Santiago de Compostela"]
[Date "2018.11.04"]
[Round "1"]
[White "Correa Roque, Yanira"]
[Black "Eswaran, Aksithi"]
[Result "0-1"]
[ECO "B21"]
[WhiteElo "1418"]
[BlackElo "1760"]
[Annotator "NA"]
[PlyCount "52"]
[EventDate "2018.11.04"]
[EventType "swiss"]
[EventCountry "ESP"]
[SourceTitle "playchess.com"]
[Source "ChessBase"]
[SourceQuality "1"]
[TimeControl "40/5400+30:1800+30"]

1. e4 {[%emt 0:00:00]} c5 {[%emt 0:00:00]} 2. d4 {[%emt 0:00:00]} cxd4 {[%emt 0:00:00]} 3. c3 {[%emt 0:00:00]} dxc3 {[%emt 0:00:00]} 4. Nxc3 {[%emt 0:00:09]} e6 {[%emt 0:00:42]} 5. a3 {[%emt 0:04:46]} Nc6 {[%emt 0:01:12]} 6. Nf3 {[%emt 0:01:07]} d6 {[%emt 0:02:59]} 7. Bc4 {[%emt 0:05:12]} a6 {[%emt 0:05:34]} 8. O-O {[%emt 0:08:40]} Be7 {[%emt 0:00:37]} 9. Bf4 {[%emt 0:05:50]} e5 {[%emt 0:05:56]} 10. Be3 {[%emt 0:00:31]} Nf6 {[%emt 0:06:29]} 11. Qb3 {[%emt 0:01:12]} O-O {[%emt 0:11:57]} 12. Ng5 {[%emt 0:14:01]} Qe8 {[%emt 0:11:56]} 13. Bd5 {[%emt 0:17:10]} h6 {[%emt 0:08:08]} 14. Nf3 {[%emt 0:01:27]} Rb8 {[%emt 0:03:23]} 15. Nd2 {[%emt 0:03:52]} Bd7 {[%emt 0:05:42]} 16. f4 {[%emt 0:01:49]} Ng4 {[%emt 0:02:36]} 17. Rae1 {[%emt 0:07:53]} Nxe3 {[%emt 0:01:08]} 18. Rxe3 {[%emt 0:00:11]} exf4 {[%emt 0:00:52]} 19. Re2 {[%emt 0:04:40]} Nd4 {[%emt 0:01:15]} 20. Qd1 {[%emt 0:01:37]} Nxe2+ {[%emt 0:00:31]} 21. Qxe2 {[%emt 0:00:33]} Bf6 {[%emt 0:01:23]} 22. Rxf4 {[%emt 0:02:15]} Be6 {[%emt 0:01:42]} 23. Bxe6 {[%emt 0:00:53]} Qxe6 {[%emt 0:00:16]} 24. Nd5 {[%emt 0:01:50]} Bg5 {[%emt 0:01:45]} 25. Rf3 {[%emt 0:02:49]} Rbc8 {[%emt 0:01:18]} 26. Nb3 {[%emt 0:02:09]} Rfe8 {[%emt 0:00:56]} 0-1